Workbook

Sheet 作成例
B1: 株式会社 ｂｅｔｏｎ | I1: 御中 | R1: 請求書（契約用） | AH1: 請求年月日 | AK1: 2023-10-20
B3: 請 求 金 額 | F3: =SUM(AE32,AE46) -> 4895000 | Q3: 請 求 者 | AH3: 振 込 先 情 報
Q6: インボイス番号 | T6: Ｔ〇〇〇〇〇〇〇〇〇〇〇〇〇 | AH6: 銀 行 名 | AK6: ○○銀行
Q9: 住所 | T9: 大阪府門真市巣本町○-○ | AH9: 支 店 名 | AK9: ××支店
B11: 【内訳】 | F11: 税 込 金 額 | K11: ( 内 消費税額 )
Q12: 会社名 | T12: 株式会社 ○○○ | AE12: 印 | AH12: 口座種別 | AK12: 普通 当座 （ ）
B13: 10 ％ 対 象 | F13: =SUM(AE32+AE43+AE44) -> 4895000 | K13: =ROUND(F13/(1+0.1)*0.1,0) -> 445000
Q15: 代表者 | T15: 代表取締役 〇〇 〇〇 | AH15: 口座番号 | AK15: 〇〇〇〇〇〇〇
B16: 非 課 税 | F16: =AE45 -> 0 | K16: -
Q18: TEL / FAX | T18: 000-000-0000 | Y18: / | Z18: 000-000-0000 | AH18: 口座名義 （カナ） | AK18: カ）エヌアイエル
B19: 合 計 | F19: =SUM(F13:J18) -> 4895000 | K19: =SUM(K13:N15) -> 445000
B23: 現 場 名 | D23: (仮称)□□1丁目計画新築工事
B25: 契 約 工 種 名 | M25: 契 約 金 額 （税抜） | S25: 今回迄出来高の90％ | X25: 既 入 金 額 | AC25: 今 回 請 求 金 額 | AK25: 契 約 残 高
B26: 鉄骨工事 | M26: 20000000 | S26: 9000000 | X26: 5000000 | AC26: 税抜 | AE26: =IF(S26="","",S26-X26) -> 4000000 | AK26: =IF(AE26="","",M26-S26) -> 11000000
B27: 鉄骨工事 追加 | M27: 1000000 | S27: 1000000 | X27: 900000 | AC27: 税抜 | AE27: =IF(S27="","",S27-X27) -> 100000 | AK27: =IF(AE27="","",M27-S27) -> 0
AC28: 税抜
AC29: 税抜
B30: ※出来高の90％の支払い （保留金解除は最終出来高請求の翌月） | AC30: 税抜小計 | AE30: =SUM(AE26:AJ29) -> 4100000
AC31: 消費税（10％） | AE31: =ROUND(AE30*10%,0) -> 410000
B32: 契 約 外 | AC32: 合 計 | AE32: =SUM(AE30:AJ31) -> 4510000
B34: 月 | C34: 日 | D34: 項 目 | Q34: 数 量 | U34: 単 位 | X34: 単 価 | AC34: 今回請求金額 | AK34: 税区分 | AM34: 備 考 | AP34: 税区分
B35: 10 | C35: 1 | D35: 鉄骨工事 契約外工事 | Q35: 1 | U35: 式 | X35: 350000 | AC35: 税抜 | AE35: =IF(X35="","",Q35*X35) -> 350000 | AK35: 0.1 | AP35: 0.1
AC36: 税抜 | AE36: =IF(X36="","",Q36*X36) ->  | AP36: 非課税
AC37: 税抜
AC38: 税抜
AC39: 税抜
AC40: 税抜
AC41: 税抜
AC42: 税抜
Q43: （送付先） | AC43: 税抜小計 | AE43: =SUMIF($AK$35:$AL$42,10%,$AE$35:$AJ$42) -> 350000 | AK43: -
B44: 1. 提出期限 ： 毎月20日〆、末日必着 | Q44: 株式会社 ｂｅｔｏｎ 〒571-0001 大阪府門真市巣本町4-3 ＮＩＬビル4Ｆ FAX ： 072-887-5062 ✉ ： beton＠ｎ２６.ｊｐ | AC44: 消費税（10％） | AE44: =ROUND(AE43*AP35,0) -> 35000 | AK44: -
B45: 2. 支払い日 ： 翌月20日支払 | AC45: 非課税小計 | AE45: =SUMIF($AK$35:$AL$42,"非課税",$AE$35:$AJ$42) -> 0 | AK45: -
B46: 3. 提出書類 ： 指定請求書・作業証明書（常傭作業の場合） | AC46: 合 計 | AE46: =SUM(AE43:AJ45) -> 385000 | AK46: -

Sheet 契約用
B1: 株式会社 ｂｅｔｏｎ | I1: 御中 | R1: 請求書（契約用） | AH1: 請求年月日
B3: 請 求 金 額 | F3: =SUM(AE32,AE46) -> 0 | Q3: 請 求 者 | AH3: 振 込 先 情 報
Q6: インボイス番号 | AH6: 銀 行 名
Q9: 住所 | AH9: 支 店 名
B11: 【内訳】 | F11: 税 込 金 額 | K11: ( 内 消費税額 )
Q12: 会社名 | AE12: 印 | AH12: 口座種別 | AK12: 普通 当座 （ ）
B13: 10 ％ 対 象 | F13: =SUM(AE32+AE43+AE44) -> 0 | K13: =ROUND(F13/(1+0.1)*0.1,0) -> 0
Q15: 代表者 | AH15: 口座番号
B16: 非 課 税 | F16: =AE45 -> 0 | K16: -
Q18: TEL / FAX | Y18: / | AH18: 口座名義 （カナ）
B19: 合 計 | F19: =SUM(F13:J18) -> 0 | K19: =SUM(K13:N15) -> 0
B23: 現 場 名
B25: 契 約 工 種 名 | M25: 契 約 金 額 （税抜） | S25: 今回迄出来高の90％ | X25: 既 入 金 額 | AC25: 今 回 請 求 金 額 | AK25: 契 約 残 高
AC26: 税抜 | AE26: =IF(S26="","",S26-X26) ->  | AK26: =IF(AE26="","",M26-S26) -> 
AC27: 税抜 | AE27: =IF(S27="","",S27-X27) ->  | AK27: =IF(AE27="","",M27-S27) -> 
AC28: 税抜
AC29: 税抜
B30: ※出来高の90％の支払い （保留金解除は最終出来高請求の翌月） | AC30: 税抜小計 | AE30: =SUM(AE26:AJ29) -> 0
AC31: 消費税（10％） | AE31: =ROUND(AE30*10%,0) -> 0
B32: 契 約 外 | AC32: 合 計 | AE32: =SUM(AE30:AJ31) -> 0
B34: 月 | C34: 日 | D34: 項 目 | Q34: 数 量 | U34: 単 位 | X34: 単 価 | AC34: 今回請求金額 | AK34: 税区分 | AM34: 備 考 | AP34: 税区分
AC35: 税抜 | AE35: =IF(X35="","",Q35*X35) ->  | AP35: 0.1
AC36: 税抜 | AE36: =IF(X36="","",Q36*X36) ->  | AP36: 非課税
AC37: 税抜
AC38: 税抜
AC39: 税抜
AC40: 税抜
AC41: 税抜
AC42: 税抜
Q43: （送付先） | AC43: 税抜小計 | AE43: =SUMIF($AK$35:$AL$42,10%,$AE$35:$AJ$42) -> 0 | AK43: -
B44: 1. 提出期限 ： 毎月20日〆、末日必着 | Q44: 株式会社 ｂｅｔｏｎ 〒571-0001 大阪府門真市巣本町4-3 ＮＩＬビル4Ｆ FAX ： 072-887-5062 ✉ ： beton＠ｎ２６.ｊｐ | AC44: 消費税（10％） | AE44: =ROUND(AE43*AP35,0) -> 0 | AK44: -
B45: 2. 支払い日 ： 翌月20日支払 | AC45: 非課税小計 | AE45: =SUMIF($AK$35:$AL$42,"非課税",$AE$35:$AJ$42) -> 0 | AK45: -
B46: 3. 提出書類 ： 指定請求書・作業証明書（常傭作業の場合） | AC46: 合 計 | AE46: =SUM(AE43:AJ45) -> 0 | AK46: -

Sheet 契約外用
B1: 株式会社 ｂｅｔｏｎ | I1: 御中 | R1: 請求書（契約外） | AH1: 請求年月日
B3: 請 求 金 額 | F3: =SUM(AE44) -> 0 | Q3: 請 求 者 | AH3: 振 込 先 情 報
Q6: インボイス番号 | AH6: 銀 行 名
Q9: 住所 | AH9: 支 店 名
B11: 【内訳】 | F11: 税 込 金 額 | K11: ( 内 消費税額 )
Q12: 会社名 | AE12: 印 | AH12: 口座種別 | AK12: 普通 当座 （ ）
B13: 10 ％ 対 象 | F13: =SUM(AE41+AE42) -> 0 | K13: =ROUND(F13/(1+0.1)*0.1,0) -> 0
Q15: 代表者 | AH15: 口座番号
B16: 非 課 税 | F16: =AE43 -> 0 | K16: -
Q18: TEL / FAX | Y18: / | AH18: 口座名義 （カナ）
B19: 合 計 | F19: =SUM(F13:J18) -> 0 | K19: =SUM(K13:O18) -> 0
B23: 現 場 名
B25: 月 | C25: 日 | D25: 項 目 | Q25: 数 量 | U25: 単 位 | X25: 単 価 | AC25: 今回請求金額 | AK25: 税区分 | AM25: 備 考 | AP25: 税区分
AC26: 税抜 | AE26: =IF(X26="","",Q26*X26) ->  | AP26: 0.1
AC27: 税抜 | AE27: =IF(X27="","",Q27*X27) ->  | AP27: 非課税
Y28: 100000 | AC28: 税抜
Z29: 100000 | AC29: 税抜
Y30: 100000 | AC30: 税抜
Y31: 100000 | AC31: 税抜
Y32: 100000 | AC32: 税抜 | AE32: =IF(X32="","",Q32*X32) -> 
Z33: 100000 | AC33: 税抜
Y34: 100000 | AC34: 税抜
Y35: 100000 | AC35: 税抜
Y36: 100000 | AC36: 税抜 | AE36: =IF(X36="","",Q36*X36) -> 
Z37: 100000 | AC37: 税抜
Y38: 100000 | AC38: 税抜
Y39: 100000 | AC39: 税抜
Y40: 100000 | AC40: 税抜
Q41: （送付先） | AC41: 税抜小計 | AE41: =SUMIF($AK$26:$AL$40,10%,$AE$26:$AJ$40) -> 0 | AK41: -
B42: 1. 提出期限 ： 毎月20日〆、末日必着 | Q42: 株式会社 ｂｅｔｏｎ 〒571-0001 大阪府門真市巣本町4-3 ＮＩＬビル4Ｆ FAX ： 072-887-5062 ✉ ： beton＠ｎ２６.ｊｐ | AC42: 消費税（10％） | AE42: =ROUND(AE41*AP26,0) -> 0 | AK42: -
B43: 2. 支払い日 ： 翌月20日支払 | AC43: 非課税小計 | AE43: =SUMIF($AK$26:$AL$40,"非課税",$AE$26:$AJ$40) -> 0 | AK43: -
B44: 3. 提出書類 ： 指定請求書・作業証明書（常傭作業の場合） | AC44: 合 計 | AE44: =SUM(AE41:AJ43) -> 0 | AK44: -
